fUST/lending_fUST_20251111
["ID","MTS","AMOUNT","RATE_DAILY","PERIOD"]
[393627967,1762865438658,-500.0,0.00016438,2]
[393627969,1762865438668,-500.0,0.00016438,2]
[393627971,1762865438678,-500.0,0.00016438,2]
[393627973,1762865438687,-500.0,0.00016438,2]
[393627975,1762865438702,-500.0,0.00016438,2]
[393627977,1762865438711,-500.0,0.00016438,2]
[393627979,1762865438721,-500.0,0.00016438,2]
[393627981,1762865438730,-500.0,0.00016438,2]
[393627982,1762865438739,-500.0,0.00016438,2]
[393627984,1762865438749,-500.0,0.00016438,2]
[393627987,1762865438759,-500.0,0.00016438,2]
[393627988,1762865438772,-377.92699899,0.00016438,2]
[393627990,1762865438782,-500.0,0.00016438,2]
[393627992,1762865438792,-500.0,0.00016438,2]
[393627994,1762865438801,-500.0,0.00016438,2]
[393627996,1762865438811,-500.0,0.00016438,2]
[393627998,1762865438821,-500.0,0.00016438,2]
[393628000,1762865438830,-500.0,0.00016438,2]
[393628002,1762865438840,-7781.38411401,0.00022337,2]
[393628004,1762865438850,-14377.48381506,0.00022337,2]
[393628006,1762865438860,-615.57292917,0.00022337,2]
[393628008,1762865438871,-839.95,0.00022337,2]
[393628010,1762865438881,-839.95,0.00022337,2]
[393628012,1762865438892,-839.95,0.00022337,2]
[393628014,1762865438902,-839.95,0.00022337,2]
[393628016,1762865438911,-839.95,0.00022337,2]
[393628018,1762865438921,-839.95,0.00022337,2]
[393628020,1762865438931,-839.95,0.00022337,2]
[393628022,1762865438941,-839.95,0.00022337,2]
[393628024,1762865438951,-839.95,0.00022337,2]
[393628026,1762865438960,-839.95,0.00022337,2]
[393628028,1762865438970,-839.95,0.00022337,2]
[393628030,1762865438979,-839.95,0.00022337,2]
[393628032,1762865438989,-839.95,0.00022337,2]
[393628034,1762865438998,-839.95,0.00022337,2]
[393628036,1762865439008,-839.95,0.00022337,2]
[393628038,1762865439018,-839.95,0.00022337,2]
[393628040,1762865439027,-839.95,0.00022337,2]
[393628042,1762865439037,-839.95,0.00022337,2]
[393628044,1762865439046,-839.95,0.00022337,2]
[393628046,1762865439055,-839.95,0.00022337,2]
[393628048,1762865439065,-839.95,0.00022337,2]
[393628049,1762865439075,-839.95,0.00022337,2]
[393628052,1762865439085,-839.99127169,0.00022337,2]
[393628053,1762865439094,-500.0,0.00022373,2]
[393628055,1762865439104,-500.0,0.00022373,2]
[393628058,1762865439128,-500.0,0.00022373,2]
[393628060,1762865439138,-561.97746094,0.00022373,2]
[393628063,1762865439149,-500.0,0.00022373,2]
[393628064,1762865439158,-500.0,0.00022373,2]
[393628066,1762865439167,-500.0,0.00022373,2]
[393628068,1762865439177,-500.0,0.00022373,2]
[393628070,1762865439187,-2831.26,0.000224,7]
[393628072,1762865439197,-1025.444958,0.000225,2]
[393628074,1762865439206,-506.30503062,0.0002277,2]
[393628076,1762865439216,-500.0,0.00022885,2]
[393628078,1762865439226,-5468.02,0.00022886,2]
[393628080,1762865439235,-1000.0,0.00022921,2]
[393628082,1762865439245,-731.197812,0.00022921,2]
[393628084,1762865439254,-1000.0,0.00022921,2]
[393628086,1762865439264,-1000.0,0.00022921,2]
[393628088,1762865439274,-1000.0,0.00022921,2]
[393628090,1762865439283,-1000.0,0.00022921,2]
[393628092,1762865439294,-159.14,0.00023,2]
[393628095,1762865439303,-5349.0360162,0.00023,2]
[393628096,1762865439313,-200.0,0.00023,7]
[393628099,1762865439322,-801.71092018,0.00023,2]
[393628100,1762865439331,-1000.0,0.00023,23]
[393628103,1762865439340,-987.0,0.00023103,2]
[393628105,1762865439350,-628.0,0.00023103,2]
[393628106,1762865439359,-2167.0,0.00023103,2]
[393628109,1762865439369,-500.0,0.0002325,2]
[393628110,1762865439378,-2319.5540683,0.00023288,30]
[393628112,1762865439387,-644.33057748,0.00023468,2]
[393628114,1762865439397,-1500.0,0.00023468,2]
[393628116,1762865439406,-1500.0,0.00023468,2]
[393628118,1762865439415,-1522.60890955,0.00023468,2]
[393628120,1762865439424,-1500.0,0.00023468,2]
[393628122,1762865439433,-351.31122903,0.00023639,2]
[393628124,1762865439443,-151.0,0.00023755,3]
[393628126,1762865439452,-151.0,0.00023755,3]
[393628128,1762865439461,-151.0,0.00023755,3]
[393628130,1762865439470,-151.0,0.00023755,3]
[393628132,1762865439479,-151.0,0.00023755,3]
[393628134,1762865439488,-151.0,0.00023755,3]
[393628136,1762865439497,-151.0,0.00023755,3]
[393628138,1762865439506,-151.0,0.00023755,3]
[393628140,1762865439515,-151.0,0.00023755,3]
[393628142,1762865439525,-151.0,0.00023755,3]
[393628144,1762865439534,-151.0,0.00023755,3]
[393628146,1762865439544,-25146.0,0.00023755,2]
[393628148,1762865439554,-1000.0,0.00023798,2]
[393628150,1762865439563,-164.325483,0.00023821,2]
[393628152,1762865439572,-500.0,0.00023981,2]
[393628153,1762865439582,-2500.0,0.00024,7]
[393628155,1762865439592,-2302.0,0.00024,7]
[393628158,1762865439602,-1000.0,0.00024,24]
[393628160,1762865439611,-518.75298684,0.00024016,2]
[393628162,1762865439620,-341.80156972,0.00024016,2]
[393628164,1762865439633,-1658.19843028,0.00024016,2]
[393628166,1762865439642,-30329.34003814,0.00024142,2]
[393628269,1762865440566,-3e-08,0.00024142,2]
[393628574,1762865443516,-222.29998712,0.000229,2]
[393628590,1762865443664,-6988.6496673,0.000229,2]
[393628648,1762865444211,150.0,0.00032877,120]
[393628761,1762865446641,-16766.75981759,0.000229,2]
[393628762,1762865446653,-1114.49710365,0.000229,2]
[393628763,1762865446671,-5235.0,0.000229,2]
[393628764,1762865446682,-7494.94491533,0.000229,2]
[393628765,1762865446693,-12944.2626457,0.00024142,2]
[393628766,1762865446706,-150.0,0.00024173,2]
[393628767,1762865446715,-500.0,0.00024173,2]
[393628768,1762865446725,-49483.84,0.000242,7]
[393628769,1762865446735,-504.09614537,0.00024346,2]
[393628770,1762865446744,-1042.6,0.0002449,10]
[393628771,1762865446753,-43499.999999,0.000245,2]
[393628772,1762865446762,-2500.0,0.00024564,2]
[393628773,1762865446772,-25348.68342421,0.0002465,2]
[393628774,1762865446782,-195.543954,0.00024658,7]
[393628775,1762865446791,-195.543954,0.00024658,7]
[393628776,1762865446801,-195.543954,0.00024658,7]
[393628777,1762865446810,-195.543954,0.00024658,7]
[393628778,1762865446819,-195.543954,0.00024658,7]
[393628779,1762865446829,-195.543954,0.00024658,7]
[393628780,1762865446839,-195.543954,0.00024658,7]
[393628781,1762865446849,-195.543954,0.00024658,7]
[393628782,1762865446858,-195.543954,0.00024658,7]
[393628783,1762865446867,-195.543954,0.00024658,7]
[393628784,1762865446877,-195.543954,0.00024658,7]
[393628785,1762865446886,-195.543954,0.00024658,7]
[393628786,1762865446896,-195.543954,0.00024658,7]
[393628787,1762865446906,-195.543954,0.00024658,7]
[393628788,1762865446915,-195.543954,0.00024658,7]
[393628789,1762865446925,-195.543954,0.00024658,7]
[393628790,1762865446934,-380.0,0.00024658,2]
[393628791,1762865446944,-2831.26,0.000247,7]
[393628792,1762865446952,-2639.5,0.00024715,30]
[393628793,1762865446962,-300.0,0.00024721,2]
[393628794,1762865446971,-501.93643937,0.00024721,2]
[393628795,1762865446980,-150.0,0.00024773,2]
[393628796,1762865446989,-506.30503062,0.0002479,2]
[393628797,1762865447102,-6894.3364678,0.000248,2]
[393628798,1762865447111,-7134.64,0.0002488,2]
[393628799,1762865447120,-500.0,0.00024899,2]
[393628800,1762865447130,-500.0,0.00024899,2]
[393628801,1762865447139,-8964.5227985,0.0002499,2]
[393628802,1762865447149,-267.0,0.00025,30]
[393628803,1762865447158,-14328.90294048,0.00025,2]
[393628804,1762865447167,-163.0,0.00025,2]
[393628805,1762865447176,-1197.0,0.00025,5]
[393628806,1762865447186,-150.0,0.00025,2]
[393628807,1762865447195,-1985.25988259,0.00025,2]
[393628808,1762865447204,-33858.84563059,0.00025,2]
[393628809,1762865447213,-35429.46772699,0.00025,2]
[393628810,1762865447223,-287.58806877,0.00025,14]
[393628811,1762865447232,-195.543954,0.00025,7]
[393628812,1762865447245,-195.543954,0.00025,7]
[393628813,1762865447255,-195.543954,0.00025,7]
[393628814,1762865447265,-195.543944,0.00025,7]
[393628815,1762865447275,-500.0,0.00025077,2]
[393628816,1762865447284,-3000.0,0.00025112,2]
[393628817,1762865447294,-160.0,0.00025264,3]
[393628818,1762865447303,-151.80565547,0.00025268,2]
[393628819,1762865447312,-250.0,0.00025321,2]
[393628820,1762865447322,-388.07635765,0.0002564,2]
[393628821,1762865447331,-3535.83379211,0.0002566,2]
[393628822,1762865447341,-1421.61,0.00025809,2]
[393628823,1762865447350,-12500.0,0.00025858,7]
[393628824,1762865447359,-12500.0,0.00025867,7]
[393628825,1762865447368,-350.0,0.00025868,2]
[393628826,1762865447378,-1000.0,0.00026,26]
[393628827,1762865447388,-527.2098662,0.00026,2]
[393628828,1762865447398,-19900.0,0.00026,2]
[393628829,1762865447407,-49483.84,0.000261,7]
[393628830,1762865447417,-577.317,0.00026103,2]
[393628831,1762865447426,-628.0,0.00026103,2]
[393628832,1762865447436,-2167.0,0.00026103,2]
[393628833,1762865447446,-160.0,0.00026154,4]
[393628834,1762865447455,-193.62922938,0.0002616,2]
[393628835,1762865447464,-500.0,0.00026173,2]
[393628836,1762865447473,-500.7406885,0.00026416,2]
[393628837,1762865447482,-153.479313,0.00026467,2]
[393628838,1762865447492,-770.674748,0.00026676,2]
[393628839,1762865447501,-506.81133565,0.0002681,2]
[393628840,1762865447510,-2831.26,0.00027,7]
[393628841,1762865447520,-160.0,0.00027045,5]
[393628842,1762865447530,-150.0,0.0002739,2]
[393628843,1762865447540,-500.0,0.00027397,2]
[393628844,1762865447550,-151.0,0.00027397,30]
[393628845,1762865447560,-150.0,0.00027397,5]
[393628846,1762865447570,-150.0,0.00027397,5]
[393628847,1762865447580,-3370.82,0.000274,2]
[393628848,1762865447590,-500.0,0.00027452,2]
[393628849,1762865447600,-151.0,0.00027452,30]
[393628850,1762865447609,-44168.35055412,0.000275,2]
[393628851,1762865447619,-500.0,0.00027507,2]
[393628852,1762865447629,-151.0,0.00027507,30]
[393628853,1762865447638,-203.9703773,0.00027507,14]
[393628854,1762865447647,-500.0,0.00027561,2]
[393628855,1762865447656,-151.0,0.00027561,30]
[393628856,1762865447666,-500.0,0.00027616,2]
[393628857,1762865447675,-155.54059864,0.00027616,30]
[393628858,1762865447685,-424.84148627,0.0002764,2]
[393628859,1762865447695,-500.0,0.00027671,2]
[393628860,1762865447709,-500.0,0.00027726,2]
[393628861,1762865447718,-273.0,0.00027778,2]
[393628862,1762865447727,-500.0,0.00027781,2]
[393628863,1762865447737,-217.51921188,0.00027835,2]
[393628864,1762865447747,-160.0,0.00027935,6]
[393628865,1762865447756,-250.0,0.00027945,5]
[393628866,1762865447765,-250.0,0.00027945,5]
[393628867,1762865447777,-15243.20797456,0.00028,2]
[393628868,1762865447787,-1000.0,0.00028,28]
[393628869,1762865447796,-2843.22,0.00028155,2]
[393628870,1762865447806,-5468.02,0.00028309,2]
[393628871,1762865447815,-500.0,0.00028365,7]
[393628872,1762865447824,-34734.05564807,0.000284,7]
[393628873,1762865447837,-14749.78435193,0.000284,7]
[393628874,1762865447846,-201.05367456,0.00028493,5]
[393628875,1762865447856,-350.0,0.00028493,5]
[393628876,1762865447865,-205429.60275268,0.000285,7]
[393628877,1762865447875,-183.93418737,0.00028606,2]
[393628878,1762865447884,-183.93418736,0.00028608,30]
[393628879,1762865447893,-3370.82,0.000287,2]
[393628880,1762865447903,-9278.6827102,0.0002876,2]
[393628881,1762865447913,-160.0,0.00028826,7]
[393628882,1762865447922,-2841.289597,0.000289,7]
[393628883,1762865447931,-500.0,0.00028921,60]
[393628884,1762865447940,-500.0,0.00028921,60]
[393628885,1762865447950,-2979.0,0.00029,2]
[393628886,1762865447959,-2831.26,0.00029,7]
[393628887,1762865447968,-450.0,0.00029041,5]
[393628888,1762865447978,-550.0,0.00029589,5]
[393628889,1762865447988,-461.60661489,0.00029639,2]
[393628890,1762865447997,-160.0,0.00029717,8]
[393628891,1762865448007,-319.16384483,0.00029717,5]
[393628892,1762865448016,-500.0,0.0002998,60]
[393628893,1762865448026,-500.0,0.0002998,60]
[393628894,1762865448036,-36008.69387851,0.0003,2]
[393628895,1762865448046,-703.26137432,0.0003,4]
[393628896,1762865448056,-340.15933236,0.0003,5]
[393628897,1762865448065,-200.0,0.0003,3]
[393628898,1762865448075,-516.0,0.0003,30]
[393628899,1762865448085,-3370.82,0.0003,2]
[393628900,1762865448094,-1000.0,0.0003,30]
[393628901,1762865448106,-413.46,0.0003,50]
[393628902,1762865448116,-1651.543538,0.0003,2]
[393628903,1762865448125,-500.0,0.00030009,7]
[393628904,1762865448135,-650.0,0.00030137,5]
[393628905,1762865448144,-500.0,0.00030182,7]
[393628906,1762865448157,-503.90429807,0.00030244,7]
[393628907,1762865448167,-500.0,0.00030255,7]
[393628908,1762865448176,-500.0,0.00030282,7]
[393628909,1762865448187,-500.0,0.0003031,7]
[393628910,1762865448196,-11962.80181993,0.00030401,2]
[393628911,1762865448206,-503.98643739,0.00030416,7]
[393628912,1762865448215,-49483.84,0.000305,7]
[393628913,1762865448224,-4264.83,0.00030501,2]
[393628914,1762865448234,-500.0,0.00030632,7]
[393628915,1762865448244,-355.34707481,0.00030685,5]
[393628916,1762865448254,-156.0,0.00030795,42]
[393628917,1762865448264,-500.0,0.00030936,7]
[393628918,1762865448273,-500.0,0.00030944,7]
[393628919,1762865448283,-2831.26,0.000311,7]
[393628920,1762865448292,-1006.61390989,0.00031119,2]
[393628921,1762865448301,-1160.9764545,0.0003112,2]
[393628922,1762865448311,-500.0,0.00031207,60]
[393628923,1762865448319,-500.0,0.00031207,60]
[393628924,1762865448328,-500.0,0.00031207,60]
[393628925,1762865448338,-500.0,0.00031207,60]
[393628926,1762865448347,-374.51161086,0.00031217,60]
[393628927,1762865448356,-595.92,0.00031217,60]
[393628928,1762865448365,-668.00691405,0.00031394,7]
[393628929,1762865448374,-3370.82,0.000314,2]
[393628930,1762865448383,-1070.47918523,0.00031401,4]
[393628931,1762865448393,-498.37174351,0.0003164,2]
[393628932,1762865448402,-500.0,0.00031653,7]
[393628933,1762865448411,-10010.31118549,0.0003185,2]
[393628934,1762865448420,-500.0,0.0003187,5]
[393628935,1762865448429,-500.0,0.0003187,30]
[393628936,1762865448439,-503.87662243,0.0003187,30]
[393628937,1762865448448,-511.39124414,0.0003187,30]
[393628938,1762865448457,-43742.15727523,0.000319,2]
[393628939,1762865448467,-510.3098475,0.00032003,7]
[393628940,1762865448478,-904.63926808,0.00032128,7]
[393628941,1762865448488,-9034.38924191,0.000322,2]
[393628942,1762865448497,-28676.18582296,0.000323,7]
[393628943,1762865448554,-20807.65417704,0.000323,7]
[393628944,1762865448563,-10592.34582296,0.000328,14]
[393628945,1762865510679,310.0,0.00032877,120]
[393628946,1762865546789,450.0,0.00032877,120]
[393628947,1762865555161,17000.0,0.000328,120]
[393628948,1762865954975,474.0,0.00032877,120]
[393628950,1762866109712,160.73417,0.00014705,2]
[393628954,1762866285288,5000.0,0.00032877,120]
[393628955,1762866489261,161.9324311,0.00014585,2]
[393629007,1762866632716,-160.81857196,0.00015486,2]
[393629009,1762866632725,-150.0,0.00015511,2]
[393629011,1762866632735,-300.0,0.00015582,2]
[393629013,1762866632744,-241.0,0.00015582,2]
[393629015,1762866632756,-98.18142804,0.00015582,2]
[393629018,1762866632767,-688.81857196,0.00015582,2]
[393629020,1762866632776,-214.44598561,0.00015589,2]
[393629022,1762866632785,-9928.32530576,0.0001559,2]
[393629118,1762866638514,-435.0,0.00015582,2]
[393629119,1762866638527,-65.0,0.00015582,2]
[393629120,1762866638538,-500.0,0.00015582,2]
[393629121,1762866638548,-363.98345371,0.00015582,2]
[393629122,1762866638560,-136.01654629,0.00015582,2]
[393629123,1762866638570,-500.0,0.00015582,2]
[393629124,1762866638580,-500.0,0.00015582,2]
[393629125,1762866638590,-503.10680473,0.00015582,2]
[393629126,1762866638599,-64.32750891,0.00015582,2]
[393629127,1762866638611,-435.67249109,0.00015582,2]
[393629128,1762866638621,-500.0,0.00015582,2]
[393629129,1762866638631,-500.0,0.00015582,2]
[393629130,1762866638640,-500.0,0.00015582,2]
[393629131,1762866638651,-500.0,0.00015582,2]
[393629132,1762866638660,-500.0,0.00015582,2]
[393629133,1762866638670,-500.0,0.00015582,2]
[393629134,1762866638680,-500.0,0.00015582,2]
[393629135,1762866638689,-500.0,0.00015582,2]
[393629136,1762866638699,-271.66247101,0.00015582,2]
[393629137,1762866638708,-500.0,0.00015582,2]
[393629138,1762866638719,-500.0,0.00015582,2]
[393629139,1762866638728,-500.0,0.00015582,2]
[393629140,1762866638739,-500.0,0.00015582,2]
[393629141,1762866638749,-603.61779246,0.00015582,2]
[393629142,1762866638759,-500.0,0.00015582,2]
[393629143,1762866638769,-500.0,0.00015582,2]
[393629144,1762866638779,-500.0,0.00015582,2]
[393629145,1762866638788,-500.0,0.00015582,2]
[393629146,1762866638798,-500.0,0.00015582,2]
[393629147,1762866638808,-500.0,0.00015582,2]
[393629148,1762866638819,-500.0,0.00015582,2]
[393629149,1762866638829,-500.0,0.00015582,2]
[393629150,1762866638841,-170.2139044,0.00015582,2]
[393629151,1762866638853,-500.0,0.00015582,2]
[393629152,1762866638864,-500.0,0.00015582,2]
[393629153,1762866638875,-500.0,0.00015582,2]
[393629154,1762866638884,-545.41667033,0.00015582,2]
[393629155,1762866638895,-500.0,0.00015582,2]
[393629156,1762866638906,-500.0,0.00015582,2]
[393629157,1762866638918,-500.0,0.00015582,2]
[393629158,1762866638928,-500.0,0.00015582,2]
[393629159,1762866638938,-500.0,0.00015582,2]
[393629160,1762866638948,-248.79316561,0.00015582,2]
[393629161,1762866638957,-500.0,0.00015582,2]
[393629162,1762866638967,-500.0,0.00015582,2]
[393629163,1762866638977,-500.0,0.00015582,2]
[393629164,1762866638987,-500.0,0.00015582,2]
[393629165,1762866638996,-500.0,0.00015582,2]
[393629166,1762866639008,-500.0,0.00015582,2]
[393629167,1762866639017,-500.0,0.00015582,2]
[393629168,1762866639026,-500.0,0.00015582,2]
[393629169,1762866639035,-500.0,0.00015582,2]
[393629170,1762866639048,-500.0,0.00015582,2]
[393629171,1762866639058,-500.0,0.00015582,2]
[393629172,1762866639068,-500.0,0.00015582,2]
[393629173,1762866639078,-500.0,0.00015582,2]
[393629174,1762866639089,-500.0,0.00015582,2]
[393629175,1762866639099,-500.0,0.00015582,2]
[393629176,1762866639108,-500.0,0.00015582,2]
[393629177,1762866639119,-500.0,0.00015582,2]
[393629178,1762866639129,-500.0,0.00015582,2]
[393629179,1762866639138,-235.13056052,0.00015582,2]
[393629180,1762866639149,-2980.08946786,0.0001559,2]
[393629181,1762866639162,-315.47340738,0.0001559,2]
[393629182,1762866639175,-1813.7756934,0.0001559,2]
[393629183,1762866639188,-940.8800004,0.0001559,2]
[393629184,1762866639201,-1197.45495219,0.0001559,2]
[393629217,1762866640760,-1440.0,0.00015483,2]
[393629218,1762866640772,-908.3318196,0.00015483,2]
[393629219,1762866640781,-48616.17550594,0.0001559,2]
[393629221,1762866640815,-528.89051107,0.0001559,2]
[393629551,1762866643920,-3850.00000002,0.0001559,2]
[393629723,1762867012574,600.0,0.000175,3]
[393629724,1762867051091,-360.61263623,0.00015388,2]
[393629725,1762867054934,-401.51503218,0.00015388,2]
[393629726,1762867056791,-151.29382709,0.00015388,2]
[393629728,1762867058820,-236.58350445,0.00015388,2]
[393629729,1762867061889,-202.10826479,0.00015388,2]
[393629730,1762867064091,-672.65105332,0.00015388,2]
[393629857,1762867215100,-161.06316152,0.00036633,30]
[393629858,1762867215155,-887.49632793,0.00036633,45]
[393629859,1762867215207,-298.69722088,0.00036633,120]
[393629860,1762867215261,-874.12918768,0.00036633,30]
[393629861,1762867215312,-5616.0,0.00036633,120]
[393629862,1762867215361,-1916.0,0.00036633,120]
[393629863,1762867215410,-500.0,0.00036633,60]
[393629864,1762867215458,-555.12418716,0.00036633,60]
[393629865,1762867215506,-199.470161,0.00036633,120]
[393629866,1762867215553,-5951.01327621,0.00036633,120]
[393629867,1762867215602,-500.0,0.00036633,60]
[393629868,1762867215653,-500.0,0.00036633,60]
[393629869,1762867215701,-500.0,0.00036633,60]
[393629870,1762867215752,-500.0,0.00036633,60]
[393629871,1762867215800,-500.0,0.00036633,60]
[393629872,1762867215850,-500.0,0.00036633,60]
[393629873,1762867215898,-500.0,0.00036633,60]
[393629874,1762867215943,-500.0,0.00036633,60]
[393629875,1762867215989,-500.0,0.00036633,60]
[393629876,1762867216040,-500.0,0.00036633,60]
[393629877,1762867216089,-500.0,0.00036633,60]
[393629878,1762867216145,-500.0,0.00036633,60]
[393629879,1762867216197,-500.0,0.00036633,60]
[393629880,1762867216254,-500.0,0.00036633,60]
[393629881,1762867216309,-500.0,0.00036633,60]
[393629882,1762867216360,-500.0,0.00036633,120]
[393629883,1762867216408,-630.74914466,0.00036633,120]
[393629884,1762867216456,-500.0,0.00036633,60]
[393629885,1762867216504,-500.0,0.00036633,60]
[393629886,1762867216551,-360.11962248,0.00036633,60]
[393629887,1762867216599,-500.82875374,0.00036633,60]
[393629888,1762867216646,-500.0,0.00036633,60]
[393629889,1762867216693,-470.81476245,0.00036633,60]
[393629890,1762867216741,-500.0,0.00036633,60]
[393629891,1762867216790,-500.0,0.00036633,60]
[393629892,1762867216838,-500.0,0.00036633,60]
[393629893,1762867216885,-448.75501615,0.00036633,60]
[393629894,1762867216931,-1560.51421537,0.00036633,120]
[393629895,1762867216978,-84000.0,0.00036633,32]
[393629896,1762867217023,-309.11896041,0.00036633,120]
[393629897,1762867217071,-500.0,0.00036633,60]
[393629898,1762867217119,-506.19470735,0.00036633,60]
[393629899,1762867217166,-138772.60393959,0.00036633,30]
[393629900,1762867217220,-321053.47466236,0.00036633,20]
[393629901,1762867217271,-501.37186228,0.00036633,60]
[393629902,1762867217321,-788.81,0.00036633,30]
[393629903,1762867217375,-7905.532166,0.00036633,120]
[393629904,1762867217426,-300.0,0.00036633,120]
[393629905,1762867217472,-300.0,0.00036633,60]
[393629906,1762867217518,-500.0,0.00036633,60]
[393629907,1762867217566,-500.0,0.00036633,60]
[393629908,1762867217613,-500.0,0.00036633,60]
[393629909,1762867217659,-500.0,0.00036633,60]
[393629910,1762867217707,-500.0,0.00036633,60]
[393629911,1762867217754,-500.0,0.00036633,60]
[393629912,1762867217801,-358.2454,0.00036633,60]
[393629913,1762867217849,-3869.51161522,0.00036633,120]
[393629914,1762867217898,-475.147599,0.00036633,60]
[393629915,1762867217944,-500.0,0.00036633,60]
[393629916,1762867217988,-500.0,0.00036633,60]
[393629917,1762867218033,-500.0,0.00036633,60]
[393629918,1762867218078,-500.49817363,0.00036633,60]
[393629919,1762867218125,-500.0,0.00036633,60]
[393629920,1762867218173,-500.0,0.00036633,60]
[393629921,1762867218226,-500.0,0.00036633,60]
[393629922,1762867218281,-500.0,0.00036633,60]
[393629923,1762867218334,-500.0,0.00036633,60]
[393629924,1762867218490,-500.0,0.00036633,60]
[393629925,1762867218549,-500.0,0.00036633,60]
[393629926,1762867218598,-500.0,0.00036633,60]
[393629927,1762867218645,-500.0,0.00036633,60]
[393629928,1762867218691,-551.55137966,0.00036633,60]
[393629929,1762867218736,-500.0,0.00036633,60]
[393629930,1762867218782,-500.0,0.00036633,60]
[393629931,1762867218829,-500.0,0.00036633,60]
[393629932,1762867218876,-500.0,0.00036633,60]
[393629933,1762867218921,-1793548.3,0.00036633,60]
[393629934,1762867218964,-999999.99999899,0.00036633,30]
[393629935,1762867219009,-500.0,0.00036633,60]
[393629936,1762867219054,-500.0,0.00036633,60]
[393629937,1762867219101,-500.0,0.00036633,60]
[393629938,1762867219150,-500.0,0.00036633,60]
[393629939,1762867219197,-500.0,0.00036633,60]
[393629940,1762867219244,-500.0,0.00036633,60]
[393629941,1762867219295,-500.0,0.00036633,60]
[393629942,1762867219346,-500.0,0.00036633,60]
[393629943,1762867219396,-500.0,0.00036633,60]
[393629944,1762867219444,-631.10557187,0.00036633,60]
[393629945,1762867219490,-518.16410855,0.00036633,60]
[393629946,1762867219539,-376.55883612,0.00036633,60]
[393629947,1762867219588,-500.0,0.00036633,60]
[393629948,1762867219634,-500.0,0.00036633,60]
[393629949,1762867219681,-500.0,0.00036633,60]
[393629950,1762867219728,-500.0,0.00036633,60]
[393629951,1762867219777,-425.70541639,0.00036633,60]
[393629952,1762867219825,-250.0,0.00036633,120]
[393629953,1762867219873,-500.0,0.00036633,60]
[393629954,1762867219921,-500.0,0.00036633,60]
[393629955,1762867219969,-500.0,0.00036633,60]
[393629956,1762867220020,-500.0,0.00036633,60]
[393629957,1762867220070,-500.0,0.00036633,60]
[393629958,1762867220118,-500.0,0.00036633,60]
[393629959,1762867220168,-500.0,0.00036633,60]
[393629960,1762867220223,-500.0,0.00036633,60]
[393629961,1762867220270,-500.0,0.00036633,60]
[393629962,1762867220318,-500.0,0.00036633,60]
[393629963,1762867220372,-500.0,0.00036633,60]
[393629964,1762867220429,-500.0,0.00036633,60]
[393629965,1762867220474,-500.0,0.00036633,60]
[393629966,1762867220521,-500.0,0.00036633,60]
[393629967,1762867220564,-500.0,0.00036633,60]
[393629968,1762867220609,-500.0,0.00036633,120]
[393629969,1762867220655,-500.0,0.00036633,120]
[393629970,1762867220700,-500.0,0.00036633,120]
[393629971,1762867220744,-500.0,0.00036633,120]
[393629972,1762867220791,-579.62264352,0.00036633,120]
[393629973,1762867220836,-100000.0,0.00036633,60]